fUST/lending_fUST_20250225
["ID","MTS","AMOUNT","RATE_DAILY","PERIOD"]
[354336889,1740430238830,-500.0,0.0001378,2]
[354336890,1740430238839,-500.0,0.0001378,2]
[354336891,1740430238849,-500.0,0.0001378,2]
[354336892,1740430238858,-1183.47,0.0001378,2]
[354336893,1740430238867,-500.0,0.0001378,2]
[354336894,1740430238877,-2012.98,0.0001378,2]
[354336895,1740430238886,-500.0,0.0001378,2]
[354336896,1740430238896,-500.0,0.0001378,2]
[354336897,1740430238905,-597.88,0.0001378,2]
[354336898,1740430238914,-514.94,0.0001378,2]
[354336899,1740430238924,-500.0,0.00013863,2]
[354336900,1740430238933,-500.0,0.00013863,2]
[354336901,1740430238941,-474.52,0.00013863,2]
[354336902,1740430238951,-706.17,0.00013863,2]
[354336903,1740430238960,-500.0,0.00013863,2]
[354336904,1740430238969,-500.0,0.00013863,2]
[354336905,1740430238979,-313.42,0.00013863,2]
[354336906,1740430238988,-500.0,0.00013863,2]
[354336907,1740430238997,-500.0,0.00013863,2]
[354336908,1740430239006,-1948.93,0.00013863,2]
[354336909,1740430239016,-2598.74,0.00013863,2]
[354336910,1740430239025,-500.0,0.00013863,2]
[354336911,1740430239035,-500.0,0.00013863,2]
[354336912,1740430239045,-500.0,0.00013863,2]
[354336913,1740430239054,-1183.47,0.00013863,2]
[354336914,1740430239063,-500.0,0.00013863,2]
[354336915,1740430239072,-2012.98,0.00013863,2]
[354336916,1740430239082,-440.0,0.00013863,2]
[354336917,1740430239092,-500.0,0.00013863,2]
[354336918,1740430239101,-557.4308118,0.000139,2]
[354336919,1740430239111,-268.06,0.00013945,2]
[354336920,1740430239121,-500.0,0.00013945,2]
[354336921,1740430239129,-706.17,0.00013945,2]
[354336922,1740430239138,-500.0,0.00013945,2]
[354336923,1740430239148,-500.0,0.00013945,2]
[354336924,1740430239156,-248.76589886,0.00013945,2]
[354336925,1740430239165,-500.0,0.00013945,2]
[354336926,1740430239174,-1948.93,0.00013945,2]
[354336927,1740430239183,-2598.74,0.00013945,2]
[354336928,1740430239193,-500.0,0.00013945,2]
[354336929,1740430239202,-500.0,0.00013945,2]
[354336930,1740430239212,-500.0,0.00013945,2]
[354336931,1740430239225,-1183.47,0.00013945,2]
[354336932,1740430239235,-500.0,0.00013945,2]
[354336933,1740430239244,-2012.98,0.00013945,2]
[354336934,1740430239253,-500.0,0.00013945,2]
[354336935,1740430239265,-500.0,0.00014027,2]
[354336936,1740430239275,-706.17,0.00014027,2]
[354336937,1740430239284,-500.0,0.00014027,2]
[354336938,1740430239293,-500.0,0.00014027,2]
[354336939,1740430239307,-500.0,0.00014027,2]
[354336940,1740430239317,-1948.93,0.00014027,2]
[354336941,1740430239326,-1186.13092838,0.00014027,2]
[354336942,1740430239340,-299.25,0.00014027,2]
[354336946,1740430240487,-663.98984156,0.00014027,2]
[354336947,1740430240680,-449.36923006,0.00014027,2]
[354336948,1740430240690,-500.0,0.00014027,2]
[354336949,1740430240699,-500.0,0.00014027,2]
[354336950,1740430240708,-500.0,0.00014027,2]
[354336951,1740430240717,-1183.47,0.00014027,2]
[354336952,1740430240727,-500.0,0.00014027,2]
[354336953,1740430240736,-2012.98,0.00014027,2]
[354336954,1740430240746,-500.0,0.00014027,2]
[354336955,1740430240755,-355.293833,0.000141,2]
[354336956,1740430240764,-500.0,0.00014109,2]
[354336957,1740430240774,-706.17,0.00014109,2]
[354336958,1740430240783,-500.0,0.00014109,2]
[354336959,1740430240793,-500.0,0.00014109,2]
[354336960,1740430240802,-274.26,0.00014109,2]
[354336961,1740430240811,-1948.93,0.00014109,2]
[354336962,1740430240820,-2598.74,0.00014109,2]
[354336963,1740430240828,-500.0,0.00014109,2]
[354336964,1740430240838,-599.54,0.00014109,2]
[354336965,1740430240847,-500.0,0.00014109,2]
[354336966,1740430240856,-1183.47,0.00014109,2]
[354336967,1740430240865,-338.12,0.00014109,2]
[354336968,1740430240874,-2012.98,0.00014109,2]
[354336969,1740430240883,-235.96,0.00014109,2]
[354336970,1740430240892,-2.11693692,0.00014191,2]
[354336983,1740430243327,-3762.08271307,0.00014191,2]
[354336984,1740430243338,-1235.80035001,0.00014191,2]
[354336985,1740430243347,-4432.68607093,0.00014191,2]
[354337007,1740430246355,-529.62,0.00013698,2]
[354337008,1740430246365,-529.62,0.0001378,2]
[354337009,1740430246374,-529.62,0.00013863,2]
[354337010,1740430246383,-529.62,0.00013945,2]
[354337011,1740430246392,-529.62,0.00014027,2]
[354337012,1740430246401,-529.62,0.00014109,2]
[354337013,1740430246411,-567.31392907,0.00014191,2]
[354337014,1740430246420,-5000.0,0.00014191,2]
[354337015,1740430246429,-500.0,0.00014191,2]
[354337016,1740430246438,-500.0,0.00014191,2]
[354337017,1740430246447,-500.0,0.00014191,2]
[354337018,1740430246457,-1948.93,0.00014191,2]
[354337019,1740430246466,-2598.74,0.00014191,2]
[354337020,1740430246475,-500.0,0.00014191,2]
[354337022,1740430246485,-500.0,0.00014191,2]
[354337023,1740430246494,-1183.47,0.00014191,2]
[354337025,1740430246504,-2012.98,0.00014191,2]
[354337026,1740430246513,-183.82870761,0.000142,2]
[354337027,1740430246522,-500.0,0.00014273,2]
[354337028,1740430246532,-239.17951467,0.00014273,2]
[354337029,1740430246541,-500.0,0.00014273,2]
[354337030,1740430246551,-1948.93,0.00014273,2]
[354337031,1740430246560,-2598.74,0.00014273,2]
[354337032,1740430246570,-500.0,0.00014273,2]
[354337033,1740430246579,-469.92,0.00014273,2]
[354337034,1740430246588,-1183.47,0.00014273,2]
[354337035,1740430246598,-2012.98,0.00014273,2]
[354337036,1740430246607,-151.0,0.000143,2]
[354337037,1740430246616,-1000.0,0.00014308,2]
[354337038,1740430246626,-500.0,0.00014356,2]
[354337039,1740430246635,-500.0,0.00014356,2]
[354337040,1740430246644,-1948.93,0.00014356,2]
[354337041,1740430246654,-2598.74,0.00014356,2]
[354337042,1740430246663,-500.0,0.00014356,2]
[354337043,1740430246673,-1183.47,0.00014356,2]
[354337044,1740430246683,-1031.24807369,0.00014356,2]
[354337045,1740430246696,-981.73192631,0.00014356,2]
[354337046,1740430246705,-1130.16807371,0.0001443,5]
[354337047,1740430246717,-502.75,0.0001443,5]
[354337049,1740430462319,221.179446,9.041e-05,2]
[354337052,1740431233125,-257.92983094,0.00010472,2]
[354337053,1740431253088,-408.14440895,0.00010472,2]
[354337054,1740431347102,-533.92576011,0.00010472,2]
[354337055,1740431347126,-1200.0,0.00011842,2]
[354337056,1740431347148,-206.7671226,0.00012648,2]
[354337057,1740431347171,-1986.4652608,0.00012707,2]
[354337058,1740431347194,-1053.9252208,0.00013212,2]
[354337087,1740431432551,-900.0,0.00011568,2]
[354337089,1740431432560,-900.0,0.00012938,2]
[354337091,1740431432569,-197.66852396,0.00013597,2]
[354337093,1740431432579,-174.91972349,0.00013598,2]
[354337095,1740431432588,-327.24574946,0.00013598,2]
[354337098,1740431432599,-500.0,0.00013673,2]
[354337100,1740431432609,-500.0,0.00013673,2]
[354337102,1740431432621,-155.11,0.0001369,2]
[354337104,1740431432631,-500.0,0.00013697,2]
[354337106,1740431432641,-500.0,0.00013697,2]
[354337108,1740431432650,-500.0,0.00013697,2]
[354337110,1740431432659,-500.0,0.00013697,2]
[354337111,1740431432669,-500.0,0.00013697,2]
[354337114,1740431432679,-500.0,0.00013697,2]
[354337116,1740431432689,-500.0,0.00013697,2]
[354337117,1740431432700,-500.0,0.00013697,2]
[354337134,1740431432842,-500.0,0.00013697,2]
[354337136,1740431432851,-500.0,0.00013697,2]
[354337138,1740431432861,-500.0,0.00013697,2]
[354337140,1740431432870,-500.0,0.00013697,2]
[354337142,1740431432880,-500.0,0.00013697,2]
[354337144,1740431432890,-469.78020255,0.00013697,2]
[354337146,1740431432899,-517.89315317,0.00013697,2]
[354337148,1740431432908,-368.88669872,0.00013697,2]
[354337150,1740431432917,-500.0,0.00013697,2]
[354337151,1740431432927,-500.0,0.00013697,2]
[354337152,1740431432936,-500.0,0.00013697,2]
[354337153,1740431432945,-500.0,0.00013697,2]
[354337154,1740431432954,-500.0,0.00013697,2]
[354337155,1740431432965,-500.0,0.00013697,2]
[354337156,1740431432974,-500.0,0.00013697,2]
[354337157,1740431432983,-500.0,0.00013697,2]
[354337158,1740431432992,-500.0,0.00013697,2]
[354337159,1740431433002,-500.0,0.00013697,2]
[354337160,1740431433011,-636.61862105,0.00013697,2]
[354337161,1740431433021,-524.69252233,0.00013697,2]
[354337162,1740431433031,-500.0,0.00013697,2]
[354337163,1740431433041,-500.0,0.00013697,2]
[354337164,1740431433050,-500.0,0.00013697,2]
[354337165,1740431433060,-500.0,0.00013697,2]
[354337166,1740431433069,-500.0,0.00013697,2]
[354337167,1740431433079,-500.0,0.00013697,2]
[354337168,1740431433089,-500.0,0.00013697,2]
[354337169,1740431433100,-500.0,0.00013697,2]
[354337170,1740431433110,-500.0,0.00013697,2]
[354337171,1740431433119,-500.0,0.00013697,2]
[354337172,1740431433130,-500.0,0.00013697,2]
[354337173,1740431433140,-500.0,0.00013697,2]
[354337174,1740431433150,-500.0,0.00013697,2]
[354337175,1740431433159,-500.0,0.00013697,2]
[354337176,1740431433169,-500.0,0.00013697,2]
[354337177,1740431433179,-500.0,0.00013697,2]
[354337178,1740431433189,-500.0,0.00013697,2]
[354337179,1740431433199,-500.0,0.00013697,2]
[354337180,1740431433210,-500.0,0.00013697,2]
[354337181,1740431433220,-500.0,0.00013697,2]
[354337182,1740431433230,-500.0,0.00013697,2]
[354337183,1740431433240,-500.0,0.00013697,2]
[354337184,1740431433250,-500.0,0.00013697,2]
[354337185,1740431433259,-166.02309357,0.00013697,2]
[354337186,1740431433269,-500.0,0.00013697,2]
[354337187,1740431433279,-35313.84112167,0.00013698,5]
[354337188,1740431433288,-2626.7282375,0.00013698,5]
[354337189,1740431433298,-502.67862467,0.00013698,2]
[354337190,1740431433308,-503.10285857,0.00013698,2]
[354337191,1740431433318,-500.0,0.00013698,2]
[354337192,1740431433328,-500.0,0.00013698,2]
[354337193,1740431433338,-500.0,0.00013698,2]
[354337194,1740431433348,-500.0,0.00013698,2]
[354337195,1740431433357,-500.0,0.00013698,2]
[354337196,1740431433367,-500.0,0.00013698,2]
[354337197,1740431433377,-500.0,0.00013698,2]
[354337198,1740431433386,-500.0,0.00013698,2]
[354337199,1740431433396,-506.33584385,0.00013698,2]
[354337200,1740431433406,-500.0,0.00013698,2]
[354337201,1740431433416,-500.0,0.00013698,2]
[354337202,1740431433425,-444.57651355,0.00013698,2]
[354337203,1740431433435,-500.0,0.00013698,2]
[354337204,1740431433445,-500.0,0.00013698,2]
[354337205,1740431433455,-500.0,0.00013698,2]
[354337206,1740431433467,-500.0,0.00013698,2]
[354337207,1740431433476,-500.0,0.00013698,2]
[354337208,1740431433486,-500.0,0.00013698,2]
[354337209,1740431433496,-501.13224049,0.00013698,2]
[354337210,1740431433506,-500.0,0.00013698,2]
[354337211,1740431433516,-500.0,0.00013698,2]
[354337212,1740431433526,-500.0,0.00013698,2]
[354337213,1740431433537,-500.0,0.00013698,2]
[354337214,1740431433547,-500.0,0.00013698,2]
[354337215,1740431433556,-151.0,0.00013698,2]
[354337216,1740431433566,-500.0,0.00013698,2]
[354337217,1740431433576,-500.0,0.00013698,2]
[354337218,1740431433586,-500.0,0.00013698,2]
[354337219,1740431433596,-500.0,0.00013698,2]
[354337220,1740431433605,-501.01894448,0.00013698,2]
[354337221,1740431433614,-500.0,0.00013698,2]
[354337222,1740431433627,-500.0,0.00013698,2]
[354337223,1740431433637,-500.0,0.00013698,2]
[354337224,1740431433647,-500.0,0.00013698,2]
[354337225,1740431433656,-515.94238992,0.00013698,2]
[354337226,1740431433666,-342.76402241,0.00013698,2]
[354337227,1740431433676,-500.0,0.00013698,2]
[354337228,1740431433685,-500.0,0.00013698,2]
[354337229,1740431433695,-500.0,0.00013698,2]
[354337230,1740431433706,-500.0,0.00013698,2]
[354337231,1740431433718,-500.0,0.00013698,2]
[354337232,1740431433728,-500.0,0.00013698,2]
[354337233,1740431433738,-195.86670974,0.00013698,2]
[354337234,1740431433748,-500.0,0.00013698,2]
[354337235,1740431433758,-500.0,0.00013698,2]
[354337236,1740431433768,-500.0,0.00013698,2]
[354337237,1740431433779,-500.0,0.00013698,2]
[354337238,1740431433789,-500.0,0.00013698,2]
[354337239,1740431433799,-500.0,0.00013698,2]
[354337240,1740431433809,-500.0,0.00013698,2]
[354337241,1740431433819,-500.0,0.00013698,2]
[354337242,1740431433830,-551.63162333,0.00013698,2]
[354337243,1740431433840,-502.71694892,0.00013698,2]
[354337244,1740431433850,-500.0,0.00013698,2]
[354337245,1740431433859,-500.0,0.00013698,2]
[354337246,1740431433869,-501.87346695,0.00013698,2]
[354337247,1740431433879,-500.0,0.00013698,2]
[354337248,1740431433889,-500.0,0.00013698,2]
[354337249,1740431433898,-500.0,0.00013698,2]
[354337250,1740431433908,-1438.148856,0.00013698,2]
[354337251,1740431433917,-500.0,0.00013698,2]
[354337252,1740431433927,-1438.148856,0.00013698,2]
[354337253,1740431433936,-500.0,0.00013698,2]
[354337254,1740431433946,-500.0,0.00013698,2]
[354337255,1740431433955,-500.0,0.00013698,2]
[354337256,1740431433967,-500.0,0.00013698,2]
[354337257,1740431433977,-627.30091157,0.00013698,2]
[354337258,1740431433986,-500.0,0.00013698,2]
[354337259,1740431433996,-500.0,0.00013698,2]
[354337260,1740431434006,-500.0,0.00013698,2]
[354337261,1740431434015,-500.0,0.00013698,2]
[354337262,1740431434025,-500.0,0.00013698,2]
[354337263,1740431434035,-501.69299135,0.00013698,2]
[354337264,1740431434044,-500.0,0.00013698,2]
[354337265,1740431434054,-500.0,0.00013698,2]
[354337266,1740431434064,-500.0,0.00013698,2]
[354337267,1740431434073,-500.0,0.00013698,2]
[354337268,1740431434082,-500.0,0.00013698,2]
[354337269,1740431434092,-500.0,0.00013698,2]
[354337270,1740431434102,-500.0,0.00013698,2]
[354337271,1740431434111,-500.0,0.00013698,2]
[354337272,1740431434120,-500.0,0.00013698,2]
[354337273,1740431434130,-500.0,0.00013698,2]
[354337274,1740431434139,-500.0,0.00013698,2]
[354337275,1740431434149,-500.0,0.00013698,2]
[354337276,1740431434159,-500.58692819,0.00013698,2]
[354337277,1740431434168,-366.572376,0.00013698,2]
[354337278,1740431434177,-366.572376,0.00013698,2]
[354337279,1740431434187,-500.0,0.00013698,2]
[354337280,1740431434196,-151.0,0.00013698,2]
[354337281,1740431434205,-500.0,0.00013698,2]
[354337282,1740431434215,-151.0,0.00013698,2]
[354337283,1740431434224,-366.572376,0.00013698,2]
[354337284,1740431434234,-366.572376,0.00013698,2]
[354337285,1740431434243,-500.0,0.00013698,2]
[354337286,1740431434252,-500.0,0.00013698,2]
[354337287,1740431434262,-500.0,0.00013698,2]
[354337288,1740431434272,-500.0,0.00013698,2]
[354337289,1740431434281,-315.47875821,0.00013698,2]
[354337290,1740431434290,-500.0,0.00013698,2]
[354337291,1740431434300,-500.0,0.00013698,2]
[354337292,1740431434310,-500.0,0.00013698,2]
[354337293,1740431434319,-500.0,0.00013698,2]
[354337294,1740431434329,-151.0,0.00013698,2]
[354337295,1740431434338,-502.18607029,0.00013698,2]
[354337296,1740431434347,-151.0,0.00013698,2]
[354337297,1740431434358,-500.0,0.00013698,2]
[354337298,1740431434368,-500.0,0.00013698,2]
[354337299,1740431434377,-500.0,0.00013698,2]
[354337300,1740431434387,-500.0,0.00013698,2]
[354337301,1740431434397,-546.72239541,0.00013698,2]
[354337302,1740431434406,-500.0,0.00013698,2]
[354337303,1740431434416,-500.0,0.00013698,2]
[354337304,1740431434425,-385.39539745,0.00013698,2]
[354337305,1740431434435,-500.0,0.00013698,2]
[354337306,1740431434445,-501.8535876,0.00013698,2]
[354337307,1740431434454,-500.0,0.00013698,2]
[354337308,1740431434464,-500.0,0.00013698,2]
[354337309,1740431434474,-500.0,0.00013698,2]
[354337310,1740431434484,-500.0,0.00013698,2]
[354337311,1740431434494,-500.0,0.00013698,2]
[354337312,1740431434503,-500.0,0.00013698,2]
[354337313,1740431434513,-500.0,0.00013698,2]
[354337314,1740431434523,-507.92340326,0.00013698,2]
[354337315,1740431434534,-500.0,0.00013698,2]
[354337316,1740431434543,-500.0,0.00013698,2]
[354337317,1740431434553,-502.39894354,0.00013698,2]
[354337318,1740431434562,-150.04621078,0.00013698,2]
[354337319,1740431434582,-500.0,0.00013698,2]
[354337320,1740431434593,-503.36067041,0.00013698,2]
[354337321,1740431434603,-500.0,0.00013698,2]
[354337322,1740431434613,-229.8494914,0.00013698,2]
[354337323,1740431434625,-500.0,0.00013698,2]
[354337324,1740431434636,-500.0,0.00013698,2]
[354337325,1740431434646,-500.0,0.00013698,2]
[354337326,1740431434655,-509.15337383,0.00013698,2]
[354337327,1740431434666,-500.0,0.00013698,2]
[354337328,1740431434675,-500.0,0.00013698,2]
[354337329,1740431434685,-500.0,0.00013698,2]
[354337330,1740431434696,-259.40794356,0.00013698,2]
[354337331,1740431434706,-500.0,0.00013698,2]
[354337332,1740431434717,-500.0,0.00013698,2]
[354337333,1740431434726,-500.0,0.00013698,2]
[354337334,1740431434735,-500.0,0.00013698,2]
[354337335,1740431434745,-500.0,0.00013698,2]
[354337336,1740431434754,-500.0,0.00013698,2]
[354337337,1740431434764,-501.83046628,0.00013698,2]
[354337338,1740431434774,-500.0,0.00013698,2]
[354337339,1740431434783,-500.0,0.00013698,2]
[354337340,1740431434793,-500.0,0.00013698,2]
[354337341,1740431434802,-500.0,0.00013698,2]
[354337342,1740431434811,-500.0,0.00013698,2]
[354337343,1740431434821,-500.0,0.00013698,2]
[354337344,1740431434831,-151.0,0.00013698,2]
[354337345,1740431434839,-151.309732,0.00013698,2]
[354337346,1740431434849,-500.0,0.00013698,2]
[354337347,1740431434858,-500.0,0.00013698,2]
[354337348,1740431434868,-629.95399957,0.00013698,2]
[354337349,1740431434877,-500.0,0.00013698,2]
[354337350,1740431434886,-500.0,0.00013698,2]
[354337351,1740431434896,-500.0,0.00013698,2]
[354337352,1740431434905,-151.0,0.00013698,2]
[354337353,1740431434914,-501.30934755,0.00013698,2]
[354337354,1740431434924,-500.0,0.00013698,2]
[354337355,1740431434934,-500.0,0.00013698,2]
[354337356,1740431434943,-500.0,0.00013698,2]
[354337357,1740431434953,-500.0,0.00013698,2]
[354337358,1740431434963,-500.0,0.00013698,2]
[354337359,1740431434973,-500.0,0.00013698,2]
[354337360,1740431434982,-500.0,0.00013698,2]
[354337361,1740431434991,-500.0,0.00013698,2]
[354337362,1740431434999,-500.0,0.00013698,2]
[354337363,1740431435009,-500.0,0.00013698,2]
[354337364,1740431435018,-500.0,0.00013698,2]
[354337365,1740431435028,-501.24955235,0.00013698,2]
[354337366,1740431435037,-500.0,0.00013698,2]
[354337367,1740431435047,-506.73045002,0.00013698,2]
[354337368,1740431435056,-500.0,0.00013698,2]
[354337369,1740431435066,-500.0,0.00013698,2]
[354337370,1740431435075,-500.0,0.00013698,2]
[354337371,1740431435085,-510.80773471,0.00013698,2]
[354337372,1740431435095,-500.0,0.00013698,2]
[354337373,1740431435104,-500.0,0.00013698,2]
[354337374,1740431435113,-193.800963,0.00013698,2]
[354337375,1740431435123,-506.44761698,0.00013698,2]
[354337376,1740431435132,-589.29002802,0.00013698,2]
[354337377,1740431435141,-193.800963,0.00013698,2]
[354337378,1740431435150,-500.0,0.00013698,2]
[354337379,1740431435159,-464.48599691,0.00013698,2]
[354337380,1740431435168,-500.0,0.00013698,2]
[354337381,1740431435178,-500.0,0.00013698,2]
[354337382,1740431435187,-500.0,0.00013698,2]
[354337383,1740431435196,-500.0,0.00013698,2]
[354337384,1740431435205,-151.0,0.00013698,2]
[354337385,1740431435216,-500.0,0.00013698,2]
[354337386,1740431435225,-500.0,0.00013698,2]
[354337387,1740431435235,-504.08652516,0.00013698,2]
[354337388,1740431435244,-500.0,0.00013698,2]
[354337389,1740431435253,-500.0,0.00013698,2]
[354337390,1740431435263,-501.13974454,0.00013698,2]
[354337391,1740431435272,-500.0,0.00013698,2]
[354337392,1740431435281,-500.0,0.00013698,2]
[354337393,1740431435290,-500.0,0.00013698,2]
[354337394,1740431435300,-500.0,0.00013698,2]
[354337395,1740431435310,-500.0,0.00013698,2]
[354337396,1740431435319,-500.0,0.00013698,2]
[354337397,1740431435328,-500.0,0.00013698,2]
[354337398,1740431435337,-500.0,0.00013698,2]
[354337399,1740431435347,-500.0,0.00013698,2]
[354337400,1740431435356,-500.0,0.00013698,2]
[354337401,1740431435366,-500.0,0.00013698,2]
[354337402,1740431435375,-500.0,0.00013698,2]
[354337403,1740431435384,-500.0,0.00013698,2]
[354337404,1740431435394,-500.0,0.00013698,2]
[354337405,1740431435404,-500.0,0.00013698,2]
[354337406,1740431435413,-500.0,0.00013698,2]
[354337407,1740431435423,-500.0,0.00013698,2]
[354337408,1740431435432,-500.0,0.00013698,2]
[354337409,1740431435442,-500.0,0.00013698,2]
[354337410,1740431435451,-340.38517673,0.00013698,2]
[354337411,1740431435462,-500.0,0.00013698,2]
[354337412,1740431435471,-500.0,0.00013698,2]
[354337413,1740431435481,-500.0,0.00013698,2]
[354337414,1740431435491,-500.0,0.00013698,2]
[354337415,1740431435500,-500.0,0.00013698,2]
[354337416,1740431435510,-500.0,0.00013698,2]
[354337417,1740431435520,-500.0,0.00013698,2]
[354337418,1740431435530,-309.43324102,0.00013698,2]
[354337419,1740431435539,-500.0,0.00013698,2]
[354337420,1740431435549,-504.3178462,0.00013698,2]
[354337421,1740431435559,-500.0,0.00013698,2]
[354337422,1740431435568,-500.0,0.00013698,2]
[354337423,1740431435578,-500.0,0.00013698,2]
[354337424,1740431435587,-500.0,0.00013698,2]
[354337425,1740431435597,-500.0,0.00013698,2]
[354337426,1740431435607,-500.0,0.00013698,2]
[354337427,1740431435616,-500.0,0.00013698,2]
[354337428,1740431435629,-507.16011455,0.00013698,2]
[354337429,1740431435638,-500.0,0.00013698,2]
[354337430,1740431435648,-500.0,0.00013698,2]
[354337431,1740431435659,-500.0,0.00013698,2]
[354337432,1740431435668,-501.09396162,0.00013698,2]
[354337433,1740431435677,-500.0,0.00013698,2]
[354337434,1740431435686,-517.24813501,0.00013698,2]
[354337435,1740431435806,-500.0,0.00013698,2]
[354337436,1740431435827,-500.0,0.00013698,2]
[354337437,1740431435837,-500.0,0.00013698,2]
[354337438,1740431435846,-449.46208928,0.00013698,2]
[354337439,1740431435855,-500.0,0.00013698,2]
[354337440,1740431435864,-500.0,0.00013698,2]
[354337441,1740431435874,-152.113893,0.00013698,2]
[354337442,1740431435883,-500.0,0.00013698,2]
[354337443,1740431435892,-152.113893,0.00013698,2]
[354337444,1740431435901,-152.113893,0.00013698,2]
[354337445,1740431435910,-152.113893,0.00013698,2]
[354337446,1740431435920,-152.113893,0.00013698,2]
[354337447,1740431435929,-152.113893,0.00013698,2]
[354337448,1740431435938,-500.0,0.00013698,2]
[354337449,1740431435947,-500.0,0.00013698,2]
[354337450,1740431435956,-500.0,0.00013698,2]
[354337451,1740431435966,-500.0,0.00013698,2]
[354337452,1740431435975,-152.113893,0.00013698,2]
[354337453,1740431435984,-152.113893,0.00013698,2]
[354337454,1740431435993,-152.113893,0.00013698,2]
[354337455,1740431436002,-152.113893,0.00013698,2]
[354337456,1740431436011,-500.0,0.00013698,2]
[354337457,1740431436020,-152.113893,0.00013698,2]
[354337458,1740431436029,-152.113893,0.00013698,2]
[354337459,1740431436038,-500.0,0.00013698,2]
[354337460,1740431436047,-500.0,0.00013698,2]
[354337461,1740431436056,-500.0,0.00013698,2]
[354337462,1740431436065,-443.535564,0.00013698,2]
[354337463,1740431436074,-194.66946926,0.00013698,2]
[354337464,1740431436083,-443.535564,0.00013698,2]
[354337465,1740431436092,-443.535564,0.00013698,2]
[354337466,1740431436101,-500.0,0.00013698,2]
[354337467,1740431436110,-151.0,0.00013698,2]
[354337468,1740431436119,-151.0,0.00013698,2]
[354337469,1740431436128,-151.0,0.00013698,2]
[354337470,1740431436137,-500.0,0.00013698,2]
[354337471,1740431436147,-443.535564,0.00013698,2]
[354337472,1740431436156,-443.535564,0.00013698,2]
[354337473,1740431436166,-443.535564,0.00013698,2]
[354337474,1740431436175,-500.9795614,0.00013698,2]
[354337475,1740431436184,-500.0,0.00013698,2]
[354337476,1740431436193,-500.0,0.00013698,2]
[354337477,1740431436202,-500.0,0.00013698,2]
[354337478,1740431436213,-500.0,0.00013698,2]
[354337479,1740431436222,-500.0,0.00013698,2]
[354337480,1740431436231,-151.0,0.00013698,2]
[354337481,1740431436240,-151.0,0.00013698,2]
[354337482,1740431436249,-500.0,0.00013698,2]
[354337483,1740431436258,-151.0,0.00013698,2]
[354337484,1740431436268,-151.0,0.00013698,2]
[354337485,1740431436277,-500.0,0.00013698,2]
[354337486,1740431436286,-500.0,0.00013698,2]
[354337487,1740431436295,-500.0,0.00013698,2]
[354337488,1740431436304,-500.0,0.00013698,2]
[354337489,1740431436314,-258.505134,0.00013698,2]
[354337490,1740431436323,-500.0,0.00013698,2]
[354337491,1740431436332,-500.0,0.00013698,2]
[354337492,1740431436341,-511.61979312,0.00013698,2]
[354337493,1740431436350,-500.0,0.00013698,2]
[354337494,1740431436359,-500.0,0.00013698,2]
[354337495,1740431436368,-500.0,0.00013698,2]
[354337496,1740431436377,-500.0,0.00013698,2]